[Event "*** Titled Tuesday Blitz"]
[Site "Chess.com"]
[Date "2021.03.30"]
[Round "3"]
[White "Rud_Makarian"]
[Black "gilbert_gm"]
[Result "1/2-1/2"]
[WhiteElo "2796"]
[BlackElo "2557"]
[TimeControl "180+1"]
[EndTime "10:31:27 PDT"]
[Termination "Game drawn by agreement"]

1. d4 {[%clk 0:02:48.6]} 1... d5 {[%clk 0:02:01.5]} 2. c4 {[%clk 0:02:48.4]}
2... c6 {[%clk 0:02:01.8]} 3. Nf3 {[%clk 0:02:49.3]} 3... Nf6 {[%clk 0:02:01.8]}
4. Nc3 {[%clk 0:02:50.2]} 4... dxc4 {[%clk 0:02:01.2]} 5. a4 {[%clk 0:02:49.8]}
5... Bf5 {[%clk 0:01:59.8]} 6. Ne5 {[%clk 0:02:49.6]} 6... Nbd7 {[%clk
0:01:59.4]} 7. Nxc4 {[%clk 0:02:49.8]} 7... Nb6 {[%clk 0:02:00]} 8. Ne5 {[%clk
0:02:45.9]} 8... a5 {[%clk 0:02:00.2]} 9. f3 {[%clk 0:02:46.2]} 9... Nfd7 {[%clk
0:01:57]} 10. e4 {[%clk 0:02:46.5]} 10... Nxe5 {[%clk 0:01:56.2]} 11. dxe5
{[%clk 0:02:47.4]} 11... Qxd1+ {[%clk 0:01:56.2]} 12. Nxd1 {[%clk 0:02:48.3]}
12... Be6 {[%clk 0:01:55.6]} 13. Nf2 {[%clk 0:02:48.9]} 13... f6 {[%clk
0:01:52.4]} 14. Nd3 {[%clk 0:02:48]} 14... Bc4 {[%clk 0:01:41.4]} 15. Be3 {[%clk
0:02:45.3]} 15... Nd7 {[%clk 0:01:41.4]} 16. exf6 {[%clk 0:02:41.1]} 16... exf6
{[%clk 0:01:42.3]} 17. Rc1 {[%clk 0:02:40.8]} 17... Bxd3 {[%clk 0:01:41.8]} 18.
Bxd3 {[%clk 0:02:41.7]} 18... Ne5 {[%clk 0:01:37.3]} 19. Be2 {[%clk 0:02:40.4]}
19... Bb4+ {[%clk 0:01:35.7]} 20. Kf2 {[%clk 0:02:40.8]} 20... Ke7 {[%clk
0:01:33]} 21. Rhd1 {[%clk 0:02:35.6]} 21... Rhd8 {[%clk 0:01:31.3]} 22. h4
{[%clk 0:02:36.1]} 22... Rxd1 {[%clk 0:01:27.4]} 23. Rxd1 {[%clk 0:02:37]} 23...
Rd8 {[%clk 0:01:27.5]} 24. Rxd8 {[%clk 0:02:35.1]} 24... Kxd8 {[%clk 0:01:28.4]}
25. h5 {[%clk 0:02:35.7]} 25... h6 {[%clk 0:01:27.6]} 26. f4 {[%clk 0:02:35.5]}
26... Nd7 {[%clk 0:01:25]} 27. Bg4 {[%clk 0:02:34.1]} 27... Nc5 {[%clk
0:01:21.2]} 28. Bd1 {[%clk 0:02:18.7]} 28... Nxe4+ {[%clk 0:01:18.3]} 29. Kf3
{[%clk 0:02:17.7]} 29... Nd2+ {[%clk 0:01:15.9]} 30. Kg4 {[%clk 0:02:16.6]}
30... Nc4 {[%clk 0:01:13.5]} 31. Bc1 {[%clk 0:02:03.9]} 31... Nd6 {[%clk
0:01:10.9]} 32. Kf3 {[%clk 0:01:58.6]} 32... Bc5 {[%clk 0:01:07.6]} 33. g4
{[%clk 0:01:57.3]} 33... Ke7 {[%clk 0:01:06.4]} 34. g5 {[%clk 0:01:57.6]} 34...
Nf7 {[%clk 0:01:02.8]} 35. g6 {[%clk 0:01:52.4]} 35... Nd6 {[%clk 0:01:02.8]}
36. Bc2 {[%clk 0:01:51.4]} 36... f5 {[%clk 0:00:54.1]} 37. b3 {[%clk 0:01:35.8]}
37... Bd4 {[%clk 0:00:53.2]} 38. Ba3 {[%clk 0:01:35.7]} 38... c5 {[%clk
0:00:53.4]} 39. Bd3 {[%clk 0:01:35.5]} 39... b6 {[%clk 0:00:52.8]} 40. Bc1
{[%clk 0:01:34.9]} 40... Kf6 {[%clk 0:00:52.8]} 41. Bd2 {[%clk 0:01:35.4]} 41...
Ke6 {[%clk 0:00:52.8]} 42. Be1 {[%clk 0:01:34.1]} 42... Ke7 {[%clk 0:00:51.2]}
43. Ke2 {[%clk 0:01:19.3]} 43... Ne8 {[%clk 0:00:44.4]} 44. Bxf5 {[%clk
0:01:15.7]} 44... Nf6 {[%clk 0:00:44.8]} 45. Kd3 {[%clk 0:00:59.1]} 45... Nxh5
{[%clk 0:00:42.2]} 46. Bd2 {[%clk 0:00:58.1]} 46... Kd6 {[%clk 0:00:38.2]} 47.
Bh3 {[%clk 0:00:49.4]} 47... Nf6 {[%clk 0:00:35.4]} 48. Be1 {[%clk 0:00:44.4]}
48... Nd5 {[%clk 0:00:34.3]} 49. Ke4 {[%clk 0:00:40.3]} 49... Nf6+ {[%clk
0:00:32.1]} 50. Kf5 {[%clk 0:00:39.1]} 50... Nd5 {[%clk 0:00:31.1]} 51. Ke4
{[%clk 0:00:37.4]} 51... Nf6+ {[%clk 0:00:31.4]} 52. Kd3 {[%clk 0:00:35.3]}
52... Nd5 {[%clk 0:00:32.3]} 53. Bg3 {[%clk 0:00:35]} 53... Nf6 {[%clk
0:00:29.4]} 54. Kc4 {[%clk 0:00:20.7]} 54... Ne4 {[%clk 0:00:16.1]} 55. Bh2
{[%clk 0:00:21.2]} 55... Nd2+ {[%clk 0:00:13.2]} 56. Kd3 {[%clk 0:00:19.7]}
56... Nxb3 {[%clk 0:00:12.2]} 57. Bg4 {[%clk 0:00:18.4]} 57... Bf6 {[%clk
0:00:09.4]} 58. Bd1 {[%clk 0:00:15.5]} 58... Nd4 {[%clk 0:00:09.7]} 59. Ke4
{[%clk 0:00:16.1]} 59... b5 {[%clk 0:00:07.2]} 60. f5+ {[%clk 0:00:15.6]} 60...
Ke7 {[%clk 0:00:07]} 61. Kd5 {[%clk 0:00:12.9]} 61... bxa4 {[%clk 0:00:05.7]}
62. Bd6+ {[%clk 0:00:13.4]} 62... Kd8 {[%clk 0:00:05.2]} 63. Bxa4 {[%clk
0:00:13.9]} 63... Nxf5 {[%clk 0:00:05.6]} 64. Bxc5 {[%clk 0:00:14.6]} 64... Ne7+
{[%clk 0:00:05.9]} 65. Ke6 {[%clk 0:00:12.8]} 65... Nxg6 {[%clk 0:00:06.4]} 66.
Bb6+ {[%clk 0:00:12.3]} 66... Kc8 {[%clk 0:00:07]} 67. Bxa5 {[%clk 0:00:12.9]}
67... Nf4+ {[%clk 0:00:06.9]} 68. Kf5 {[%clk 0:00:13.4]} 68... Nd5 {[%clk
0:00:07.2]} 69. Kg6 {[%clk 0:00:11.8]} 69... Nc7 {[%clk 0:00:06.5]} 70. Bxc7
{[%clk 0:00:11.2]} 70... Kxc7 {[%clk 0:00:06.9]} 71. Bd1 {[%clk 0:00:12.1]}
71... Kd6 {[%clk 0:00:07.8]} 72. Bh5 {[%clk 0:00:12.8]} 72... Ke7 {[%clk
0:00:08.7]} 73. Kf5 {[%clk 0:00:12.5]} 73... Kf8 {[%clk 0:00:09.6]} 74. Bg6
{[%clk 0:00:12.9]} 74... Bd8 {[%clk 0:00:10.1]} 75. Kg4 {[%clk 0:00:13.5]} 75...
Bf6 {[%clk 0:00:10.5]} 76. Kh5 {[%clk 0:00:14.4]} 76... Ba1 {[%clk 0:00:11.4]}
77. Bb1 {[%clk 0:00:15.3]} 77... Ke7 {[%clk 0:00:12.3]} 78. Bg6 {[%clk
0:00:15.9]} 78... Kf6 {[%clk 0:00:13.2]} 79. Be4 {[%clk 0:00:14.4]} 79... Bc3
{[%clk 0:00:13.7]} 80. Bg6 {[%clk 0:00:13.3]} 80... Bd2 {[%clk 0:00:14.6]} 81.
Bc2 {[%clk 0:00:13.6]} 81... g5 {[%clk 0:00:14.8]} 82. Bd1 {[%clk 0:00:14.3]}
82... Kg7 {[%clk 0:00:14.8]} 83. Bg4 {[%clk 0:00:14.8]} 83... Bf4 {[%clk
0:00:15.7]} 84. Bc8 {[%clk 0:00:15.7]} 84... Kf6 {[%clk 0:00:15.2]} 85. Bg4
{[%clk 0:00:16.6]} 85... Kg7 {[%clk 0:00:14]} 86. Bh3 {[%clk 0:00:17.5]} 86...
Bc7 {[%clk 0:00:14.9]} 87. Bg4 {[%clk 0:00:18.4]} 87... Bd8 {[%clk 0:00:15.8]}
88. Bd1 {[%clk 0:00:18.9]} 88... Be7 {[%clk 0:00:16.7]} 89. Bg4 {[%clk
0:00:19.7]} 89... Bf8 {[%clk 0:00:17.6]} 90. Bd1 {[%clk 0:00:20.5]} 90... Kf6
{[%clk 0:00:18.5]} 91. Bg4 {[%clk 0:00:21.4]} 91... Bg7 {[%clk 0:00:18.5]} 92.
Bd1 {[%clk 0:00:21.1]} 92... Ke5 {[%clk 0:00:19.1]} 93. Bg4 {[%clk 0:00:22]}
93... Kf4 {[%clk 0:00:19.6]} 94. Bd1 {[%clk 0:00:22.6]} 94... Bf8 {[%clk
0:00:20.2]} 95. Bg4 {[%clk 0:00:23.5]} 95... Ke3 {[%clk 0:00:19.8]} 96. Bc8
{[%clk 0:00:24.4]} 96... Kf3 {[%clk 0:00:19.4]} 97. Bg4+ {[%clk 0:00:25.3]}
97... Kg3 {[%clk 0:00:20.3]} 98. Bc8 {[%clk 0:00:26.2]} 98... Kh2 {[%clk
0:00:18.3]} 99. Bg4 {[%clk 0:00:27.1]} 99... Kg2 {[%clk 0:00:17.4]} 100. Bc8
{[%clk 0:00:28]} 100... Kf2 {[%clk 0:00:17.9]} 101. Bg4 {[%clk 0:00:28.9]}
101... Ke3 {[%clk 0:00:18.5]} 102. Bc8 {[%clk 0:00:29.8]} 102... Kf4 {[%clk
0:00:17.7]} 103. Bg4 {[%clk 0:00:30.7]} 103... Ba3 {[%clk 0:00:18.1]} 104. Bc8
{[%clk 0:00:31.6]} 104... Bc1 {[%clk 0:00:19]} 105. Bg4 {[%clk 0:00:31.5]}
105... Kg3 {[%clk 0:00:19]} 106. Bc8 {[%clk 0:00:31.4]} 106... Kf2 {[%clk
0:00:19.4]} 107. Bg4 {[%clk 0:00:30.7]} 107... Bd2 {[%clk 0:00:17.6]} 108. Kxh6
{[%clk 0:00:29.1]} 108... Kg3 {[%clk 0:00:17.2]} 109. Kh5 {[%clk 0:00:30]}
109... Kf4 {[%clk 0:00:17.3]} 110. Bc8 {[%clk 0:00:30.9]} 110... Ke5 {[%clk
0:00:12.3]} 111. Bg4 {[%clk 0:00:31.8]} 111... Kf6 {[%clk 0:00:13.2]} 1/2-1/2

[Event "*** Titled Tuesday Blitz"]
[Site "Chess.com"]
[Date "2021.03.30"]
[Round "4"]
[White "andriipalchuk"]
[Black "BahadirOzen"]
[Result "1/2-1/2"]
[WhiteElo "2622"]
[BlackElo "2771"]
[TimeControl "180+1"]
[EndTime "10:33:01 PDT"]
[Termination "Game drawn by agreement"]

1. d4 {[%clk 0:03:00.9]} 1... d6 {[%clk 0:03:00.1]} 2. c4 {[%clk 0:03:01.1]}
2... g6 {[%clk 0:02:59.8]} 3. Nf3 {[%clk 0:03:01.2]} 3... Bg7 {[%clk 0:03:00]}
4. g3 {[%clk 0:03:01.9]} 4... Nf6 {[%clk 0:02:59.5]} 5. Bg2 {[%clk 0:03:02.5]}
5... O-O {[%clk 0:03:00.4]} 6. O-O {[%clk 0:03:03.1]} 6... c6 {[%clk 0:03:00.8]}
7. Nc3 {[%clk 0:03:02.4]} 7... Bf5 {[%clk 0:03:01.3]} 8. Nh4 {[%clk 0:03:00.6]}
8... Be6 {[%clk 0:03:01.4]} 9. b3 {[%clk 0:02:57.5]} 9... d5 {[%clk 0:03:01.5]}
10. cxd5 {[%clk 0:02:51.7]} 10... cxd5 {[%clk 0:03:00.4]} 11. Nf3 {[%clk
0:02:49.6]} 11... Nc6 {[%clk 0:02:53.2]} 12. Bf4 {[%clk 0:02:49.5]} 12... Ne4
{[%clk 0:02:43.1]} 1/2-1/2

[Event "*** Titled Tuesday Blitz"]
[Site "Chess.com"]
[Date "2021.03.30"]
[Round "4"]
[White "Zkid"]
[Black "DenisQ"]
[Result "0-1"]
[WhiteElo "2834"]
[BlackElo "2656"]
[TimeControl "180+1"]
[EndTime "10:34:22 PDT"]
[Termination "DenisQ won by resignation"]

1. e4 {[%clk 0:02:58.1]} 1... c6 {[%clk 0:02:59.5]} 2. d4 {[%clk 0:02:57.9]}
2... d5 {[%clk 0:03:00.4]} 3. exd5 {[%clk 0:02:58.7]} 3... cxd5 {[%clk
0:03:00.3]} 4. Bd3 {[%clk 0:02:59.4]} 4... Nc6 {[%clk 0:03:00.2]} 5. c3 {[%clk
0:02:59.9]} 5... Nf6 {[%clk 0:03:00.5]} 6. Bf4 {[%clk 0:03:00.2]} 6... Bg4
{[%clk 0:02:59.7]} 7. Qb3 {[%clk 0:03:00.5]} 7... Qd7 {[%clk 0:02:59.4]} 8. Nd2
{[%clk 0:03:00.8]} 8... e6 {[%clk 0:02:59.2]} 9. Ngf3 {[%clk 0:03:01.4]} 9...
Bxf3 {[%clk 0:02:59]} 10. Nxf3 {[%clk 0:03:02.3]} 10... Bd6 {[%clk 0:02:59]} 11.
Bxd6 {[%clk 0:03:01.1]} 11... Qxd6 {[%clk 0:02:59.9]} 12. O-O {[%clk 0:03:01.5]}
12... O-O {[%clk 0:02:59.5]} 13. Rae1 {[%clk 0:03:02.1]} 13... Rab8 {[%clk
0:02:58.7]} 14. a4 {[%clk 0:02:59.8]} 14... Qc7 {[%clk 0:02:58]} 15. Ne5 {[%clk
0:02:55]} 15... Nxe5 {[%clk 0:02:57.4]} 16. Rxe5 {[%clk 0:02:54.9]} 16... a6
{[%clk 0:02:55.1]} 17. Qc2 {[%clk 0:02:49.2]} 17... b5 {[%clk 0:02:52.8]} 18.
axb5 {[%clk 0:02:33.2]} 18... axb5 {[%clk 0:02:53.7]} 19. b4 {[%clk 0:02:32]}
19... Rfc8 {[%clk 0:02:50.3]} 20. Re3 {[%clk 0:02:30.4]} 20... g6 {[%clk
0:02:47.1]} 21. Rc1 {[%clk 0:02:24.6]} 21... Ne8 {[%clk 0:02:45.1]} 22. Qe2
{[%clk 0:02:21.8]} 22... Nd6 {[%clk 0:02:42.9]} 23. h4 {[%clk 0:02:21.9]} 23...
Qe7 {[%clk 0:02:37.9]} 24. h5 {[%clk 0:02:19.1]} 24... Qg5 {[%clk 0:02:32.5]}
25. Rg3 {[%clk 0:02:12.1]} 25... Qxc1+ {[%clk 0:02:31.5]} 0-1

[Event "*** Titled Tuesday Blitz"]
[Site "Chess.com"]
[Date "2021.03.30"]
[Round "4"]
[White "Blitzking642"]
[Black "Magila31"]
[Result "0-1"]
[WhiteElo "2441"]
[BlackElo "2290"]
[TimeControl "180+1"]
[EndTime "10:34:57 PDT"]
[Termination "Magila31 won by resignation"]

1. e4 {[%clk 0:03:00.9]} 1... g6 {[%clk 0:02:59.2]} 2. Nc3 {[%clk 0:02:59.4]}
2... Bg7 {[%clk 0:02:58.5]} 3. Bc4 {[%clk 0:02:58]} 3... e6 {[%clk 0:02:56.9]}
4. f4 {[%clk 0:02:57]} 4... Ne7 {[%clk 0:02:55.5]} 5. Bb3 {[%clk 0:02:54.8]}
5... c5 {[%clk 0:02:53.1]} 6. Nf3 {[%clk 0:02:52]} 6... Nbc6 {[%clk 0:02:52.2]}
7. O-O {[%clk 0:02:45.2]} 7... O-O {[%clk 0:02:43.8]} 8. d3 {[%clk 0:02:43.8]}
8... d5 {[%clk 0:02:37.4]} 9. Qe1 {[%clk 0:02:41.3]} 9... Nd4 {[%clk 0:02:31.5]}
10. Nxd4 {[%clk 0:02:38.9]} 10... cxd4 {[%clk 0:02:31]} 11. Ne2 {[%clk
0:02:39.4]} 11... dxe4 {[%clk 0:02:30.5]} 12. dxe4 {[%clk 0:02:40.3]} 12... Nc6
{[%clk 0:02:26.3]} 13. f5 {[%clk 0:02:37.5]} 13... exf5 {[%clk 0:02:25.3]} 14.
exf5 {[%clk 0:02:32.1]} 14... Bxf5 {[%clk 0:02:25.1]} 15. Rxf5 {[%clk
0:02:32.6]} 15... gxf5 {[%clk 0:02:25]} 16. Ng3 {[%clk 0:02:29.3]} 16... Re8
{[%clk 0:02:00.4]} 17. Qf2 {[%clk 0:02:28.2]} 17... d3 {[%clk 0:02:00.2]} 18. c3
{[%clk 0:02:27.3]} 18... Nd4 {[%clk 0:01:57.5]} 19. Nxf5 {[%clk 0:02:08.1]}
19... Nxf5 {[%clk 0:01:55.8]} 20. Qxf5 {[%clk 0:02:07]} 20... d2 {[%clk
0:01:54.9]} 21. Bxf7+ {[%clk 0:02:03.4]} 21... Kh8 {[%clk 0:01:54.2]} 0-1

[Event "*** Titled Tuesday Blitz"]
[Site "Chess.com"]
[Date "2021.03.30"]
[Round "4"]
[White "tusplingher"]
[Black "gxbg2000"]
[Result "1-0"]
[WhiteElo "2279"]
[BlackElo "1910"]
[TimeControl "180+1"]
[EndTime "10:35:01 PDT"]
[Termination "tusplingher won by resignation"]

1. e4 {[%clk 0:03:00.9]} 1... e5 {[%clk 0:02:51.5]} 2. Bc4 {[%clk 0:03:00.1]}
2... c6 {[%clk 0:02:50.6]} 3. Nf3 {[%clk 0:02:54.1]} 3... d6 {[%clk 0:02:50]} 4.
O-O {[%clk 0:02:53.5]} 4... h6 {[%clk 0:02:49.8]} 5. d4 {[%clk 0:02:53.5]} 5...
exd4 {[%clk 0:02:49.1]} 6. Nxd4 {[%clk 0:02:52.9]} 6... Nf6 {[%clk 0:02:49.5]}
7. Nc3 {[%clk 0:02:51]} 7... Be7 {[%clk 0:02:48.8]} 8. Bf4 {[%clk 0:02:47.7]}
8... O-O {[%clk 0:02:47.3]} 9. Bg3 {[%clk 0:02:41.7]} 9... b5 {[%clk 0:02:43.7]}
10. Be2 {[%clk 0:02:38.9]} 10... Bb7 {[%clk 0:02:43.5]} 11. Nf5 {[%clk
0:02:36.5]} 11... d5 {[%clk 0:02:37.8]} 12. exd5 {[%clk 0:02:30.8]} 12... Nxd5
{[%clk 0:02:36.3]} 13. Nxd5 {[%clk 0:02:29.7]} 13... cxd5 {[%clk 0:02:35.7]} 14.
Bxb5 {[%clk 0:02:27.6]} 14... Bf6 {[%clk 0:02:33.1]} 15. Bd3 {[%clk 0:02:23.6]}
15... Nd7 {[%clk 0:02:29.1]} 16. Qg4 {[%clk 0:02:07.6]} 16... Kh8 {[%clk
0:02:00.2]} 17. Nxh6 {[%clk 0:02:01.3]} 17... gxh6 {[%clk 0:01:55.5]} 18. Qf5
{[%clk 0:02:00.3]} 1-0

[Event "*** Titled Tuesday Blitz"]
[Site "Chess.com"]
[Date "2021.03.30"]
[Round "4"]
[White "Kapibara_Warri0r"]
[Black "Beca95"]
[Result "0-1"]
[WhiteElo "2246"]
[BlackElo "2890"]
[TimeControl "180+1"]
[EndTime "10:35:31 PDT"]
[Termination "Beca95 won by resignation"]

1. e4 {[%clk 0:03:00.9]} 1... g6 {[%clk 0:02:31.9]} 2. d4 {[%clk 0:03:00.2]}
2... Nf6 {[%clk 0:02:30.7]} 3. Nc3 {[%clk 0:02:59.7]} 3... d5 {[%clk 0:02:29.5]}
4. e5 {[%clk 0:02:58.5]} 4... Ne4 {[%clk 0:02:24.3]} 5. Nxe4 {[%clk 0:02:54.5]}
5... dxe4 {[%clk 0:02:25.2]} 6. Bc4 {[%clk 0:02:54.4]} 6... c5 {[%clk
0:02:18.9]} 7. d5 {[%clk 0:02:35.4]} 7... Bg7 {[%clk 0:02:18.4]} 8. Bf4 {[%clk
0:02:35.7]} 8... O-O {[%clk 0:02:06.6]} 9. Ne2 {[%clk 0:02:32.7]} 9... Nd7
{[%clk 0:02:06.2]} 10. e6 {[%clk 0:01:54.5]} 10... Nb6 {[%clk 0:02:02.5]} 11. b3
{[%clk 0:01:42.6]} 11... fxe6 {[%clk 0:02:01.5]} 12. dxe6 {[%clk 0:01:36]} 12...
Nxc4 {[%clk 0:02:00.8]} 13. bxc4 {[%clk 0:01:33.4]} 13... Bxe6 {[%clk
0:02:00.8]} 14. Rb1 {[%clk 0:01:24.3]} 14... Bxc4 {[%clk 0:01:59.9]} 15. Qxd8
{[%clk 0:01:20.9]} 15... Raxd8 {[%clk 0:02:00.8]} 16. Rxb7 {[%clk 0:01:20.6]}
16... Bxe2 {[%clk 0:01:59.4]} 17. Kxe2 {[%clk 0:01:20.5]} 17... Rxf4 {[%clk
0:01:59.3]} 0-1

[Event "*** Titled Tuesday Blitz"]
[Site "Chess.com"]
[Date "2021.03.30"]
[Round "4"]
[White "Hikaru"]
[Black "superchess02"]
[Result "1-0"]
[WhiteElo "3211"]
[BlackElo "2813"]
[TimeControl "180+1"]
[EndTime "10:36:00 PDT"]
[Termination "Hikaru won by resignation"]

1. e4 {[%clk 0:03:00.9]} 1... e5 {[%clk 0:03:00.2]} 2. Nc3 {[%clk 0:02:57.8]}
2... Nf6 {[%clk 0:02:59.2]} 3. Bc4 {[%clk 0:02:55.9]} 3... c6 {[%clk 0:02:58.8]}
4. Nf3 {[%clk 0:02:46.7]} 4... d6 {[%clk 0:02:49.9]} 5. d4 {[%clk 0:02:42.7]}
5... exd4 {[%clk 0:02:46.9]} 6. Qxd4 {[%clk 0:02:42.5]} 6... Be7 {[%clk
0:02:46.1]} 7. Bf4 {[%clk 0:02:38.4]} 7... b5 {[%clk 0:02:45.4]} 8. Be2 {[%clk
0:02:36.3]} 8... Nh5 {[%clk 0:02:39.3]} 9. Be3 {[%clk 0:02:33.2]} 9... Bf6
{[%clk 0:02:32.7]} 10. Qd2 {[%clk 0:02:30.1]} 10... b4 {[%clk 0:02:28.3]} 11.
Nd1 {[%clk 0:02:23.3]} 11... a5 {[%clk 0:02:25.3]} 12. Nd4 {[%clk 0:02:18.4]}
12... g6 {[%clk 0:02:24.8]} 13. g4 {[%clk 0:02:13.9]} 13... Ng7 {[%clk
0:02:23.2]} 14. g5 {[%clk 0:02:14.5]} 14... Be7 {[%clk 0:02:20.9]} 15. f4 {[%clk
0:02:14.7]} 15... h6 {[%clk 0:02:18.3]} 16. gxh6 {[%clk 0:02:14.1]} 16... Rxh6
{[%clk 0:02:15.5]} 17. Nf2 {[%clk 0:02:14.5]} 17... c5 {[%clk 0:02:10.8]} 18.
Nf3 {[%clk 0:02:13.3]} 18... Bb7 {[%clk 0:02:00.9]} 19. f5 {[%clk 0:02:06.9]}
19... Rh8 {[%clk 0:02:01]} 20. fxg6 {[%clk 0:02:07.4]} 20... fxg6 {[%clk
0:02:01.1]} 21. Rg1 {[%clk 0:02:07.8]} 21... Bf6 {[%clk 0:01:53.6]} 22. O-O-O
{[%clk 0:02:05.7]} 22... Ba6 {[%clk 0:01:36.1]} 23. Rxg6 {[%clk 0:02:02.6]}
23... a4 {[%clk 0:01:32.6]} 24. e5 {[%clk 0:01:58]} 24... dxe5 {[%clk
0:01:18.5]} 25. Qxd8+ {[%clk 0:01:49.5]} 25... Bxd8 {[%clk 0:01:19.4]} 26. Bxa6
{[%clk 0:01:49.8]} 26... Rxa6 {[%clk 0:01:19.4]} 27. Rxg7 {[%clk 0:01:48.9]} 1-0

[Event "*** Titled Tuesday Blitz"]
[Site "Chess.com"]
[Date "2021.03.30"]
[Round "4"]
[White "The_filthy"]
[Black "MIJuanReyesRosa"]
[Result "1-0"]
[WhiteElo "2318"]
[BlackElo "2103"]
[TimeControl "180+1"]
[EndTime "10:36:18 PDT"]
[Termination "The_filthy won on time"]

1. e4 {[%clk 0:03:00.9]} 1... c6 {[%clk 0:02:58.8]} 2. d4 {[%clk 0:02:59.4]}
2... d5 {[%clk 0:02:58.9]} 3. exd5 {[%clk 0:03:00.1]} 3... cxd5 {[%clk
0:02:58.6]} 4. Bd3 {[%clk 0:03:01]} 4... Nf6 {[%clk 0:02:54.5]} 5. c3 {[%clk
0:03:01.5]} 5... Qc7 {[%clk 0:02:50.1]} 6. h3 {[%clk 0:02:59.7]} 6... e5 {[%clk
0:02:42.1]} 7. dxe5 {[%clk 0:02:59.5]} 7... Qxe5+ {[%clk 0:02:41.9]} 8. Be3
{[%clk 0:02:59.4]} 8... Bc5 {[%clk 0:02:36.5]} 9. Nf3 {[%clk 0:02:58.8]} 9...
Qe7 {[%clk 0:02:27.5]} 10. O-O {[%clk 0:02:58.2]} 10... Bxe3 {[%clk 0:02:21.7]}
11. Re1 {[%clk 0:02:58.5]} 11... Bxf2+ {[%clk 0:02:21.7]} 12. Kxf2 {[%clk
0:02:58.6]} 12... Be6 {[%clk 0:02:20.8]} 13. Nd4 {[%clk 0:02:54]} 13... O-O
{[%clk 0:02:14.9]} 14. Nd2 {[%clk 0:02:51.1]} 14... Nc6 {[%clk 0:02:11.9]} 15.
N2f3 {[%clk 0:02:50.2]} 15... Rad8 {[%clk 0:01:58.3]} 16. Kg1 {[%clk 0:02:48]}
16... Qd6 {[%clk 0:01:39.2]} 17. Ng5 {[%clk 0:02:42.5]} 17... Nxd4 {[%clk
0:01:32.7]} 18. cxd4 {[%clk 0:02:42.3]} 18... h6 {[%clk 0:01:19.8]} 19. Nxe6
{[%clk 0:02:40]} 19... fxe6 {[%clk 0:01:17.9]} 20. Qb3 {[%clk 0:02:40.6]} 20...
Qg3 {[%clk 0:00:57.2]} 21. Bh7+ {[%clk 0:02:38.6]} 1-0

[Event "*** Titled Tuesday Blitz"]
[Site "Chess.com"]
[Date "2021.03.30"]
[Round "4"]
[White "losersgame"]
[Black "StockholmMissile"]
[Result "0-1"]
[WhiteElo "2324"]
[BlackElo "2558"]
[TimeControl "180+1"]
[EndTime "10:36:29 PDT"]
[Termination "StockholmMissile won by checkmate"]

1. d4 {[%clk 0:03:00.9]} 1... Nf6 {[%clk 0:02:54.9]} 2. c4 {[%clk 0:03:01]} 2...
g6 {[%clk 0:02:54.7]} 3. Nc3 {[%clk 0:03:01.2]} 3... d5 {[%clk 0:02:55]} 4. cxd5
{[%clk 0:03:01]} 4... Nxd5 {[%clk 0:02:55.9]} 5. e4 {[%clk 0:03:01]} 5... Nxc3
{[%clk 0:02:56.4]} 6. bxc3 {[%clk 0:03:01.2]} 6... Bg7 {[%clk 0:02:57]} 7. Nf3
{[%clk 0:03:01]} 7... c5 {[%clk 0:02:57.2]} 8. Be3 {[%clk 0:03:01]} 8... O-O
{[%clk 0:02:56.8]} 9. Rc1 {[%clk 0:03:00.3]} 9... cxd4 {[%clk 0:02:53.4]} 10.
cxd4 {[%clk 0:03:00]} 10... Qa5+ {[%clk 0:02:53.6]} 11. Qd2 {[%clk 0:03:00]}
11... Qxd2+ {[%clk 0:02:53.2]} 12. Kxd2 {[%clk 0:03:00.1]} 12... Nc6 {[%clk
0:02:49.9]} 13. d5 {[%clk 0:02:57.6]} 13... Rd8 {[%clk 0:02:48.5]} 14. Kc2
{[%clk 0:02:57.4]} 14... Ne5 {[%clk 0:02:44.9]} 15. Nxe5 {[%clk 0:02:56.5]}
15... Bxe5 {[%clk 0:02:45.8]} 16. Kb3 {[%clk 0:02:51.9]} 16... e6 {[%clk
0:02:43.9]} 17. Bc4 {[%clk 0:02:47.7]} 17... b5 {[%clk 0:02:40.9]} 18. Be2
{[%clk 0:02:05.9]} 18... exd5 {[%clk 0:02:39.9]} 19. exd5 {[%clk 0:02:05.5]}
19... Bb7 {[%clk 0:02:35.8]} 20. Bxb5 {[%clk 0:02:03.1]} 20... Bxd5+ {[%clk
0:02:34.1]} 21. Bc4 {[%clk 0:02:02.3]} 21... Rab8+ {[%clk 0:02:25.6]} 22. Ka4
{[%clk 0:01:59.7]} 22... Bxg2 {[%clk 0:02:24]} 23. Rhd1 {[%clk 0:01:56.8]} 23...
Rxd1 {[%clk 0:02:13.8]} 24. Rxd1 {[%clk 0:01:56.1]} 24... Bc3 {[%clk 0:02:09.7]}
25. Bb5 {[%clk 0:01:07.7]} 25... a6 {[%clk 0:02:01.7]} 26. Bxa6 {[%clk
0:00:46.6]} 26... Bc6+ {[%clk 0:01:56.9]} 27. Ka3 {[%clk 0:00:41.6]} 27... Bb2#
{[%clk 0:01:55.1]} 0-1

[Event "*** Titled Tuesday Blitz"]
[Site "Chess.com"]
[Date "2021.03.30"]
[Round "4"]
[White "Klavdia_Nik"]
[Black "chessprincesa1"]
[Result "1-0"]
[WhiteElo "2027"]
[BlackElo "2249"]
[TimeControl "180+1"]
[EndTime "10:36:36 PDT"]
[Termination "Klavdia_Nik won by resignation"]

1. Nf3 {[%clk 0:03:00.9]} 1... Nf6 {[%clk 0:02:59]} 2. c4 {[%clk 0:03:01.3]}
2... e6 {[%clk 0:02:56.5]} 3. b3 {[%clk 0:03:01.2]} 3... d5 {[%clk 0:02:54.8]}
4. Bb2 {[%clk 0:03:00.9]} 4... Be7 {[%clk 0:02:53.9]} 5. g3 {[%clk 0:03:00.5]}
5... O-O {[%clk 0:02:53.2]} 6. Bg2 {[%clk 0:03:01.2]} 6... c5 {[%clk 0:02:52.3]}
7. O-O {[%clk 0:03:01.7]} 7... Nc6 {[%clk 0:02:51.4]} 8. d3 {[%clk 0:03:02]}
8... d4 {[%clk 0:02:48.9]} 9. Nbd2 {[%clk 0:03:02.1]} 9... e5 {[%clk 0:02:48.3]}
10. b4 {[%clk 0:03:01.5]} 10... cxb4 {[%clk 0:02:44.2]} 11. a3 {[%clk
0:03:01.8]} 11... bxa3 {[%clk 0:02:44]} 12. Bxa3 {[%clk 0:03:02.5]} 12... Bxa3
{[%clk 0:02:39.1]} 13. Rxa3 {[%clk 0:03:02.9]} 13... Bg4 {[%clk 0:02:32.5]} 14.
h3 {[%clk 0:03:01.6]} 14... Bf5 {[%clk 0:02:29.7]} 15. Ng5 {[%clk 0:02:57.6]}
15... Nd7 {[%clk 0:02:26.4]} 16. Nge4 {[%clk 0:02:52.8]} 16... Be6 {[%clk
0:02:26.5]} 17. Qa4 {[%clk 0:02:37.8]} 17... f5 {[%clk 0:02:17]} 18. Nd6 {[%clk
0:02:20.7]} 18... Nc5 {[%clk 0:01:49]} 19. Nxb7 {[%clk 0:02:20.1]} 19... Nxa4
{[%clk 0:01:23.4]} 20. Nxd8 {[%clk 0:02:19.8]} 20... Nxd8 {[%clk 0:01:21.5]} 21.
Bxa8 {[%clk 0:02:09.1]} 21... Nc3 {[%clk 0:01:21.5]} 22. Re1 {[%clk 0:02:04.5]}
22... f4 {[%clk 0:01:14.2]} 23. Bg2 {[%clk 0:01:50.6]} 23... Rf7 {[%clk
0:01:00.6]} 24. Nf3 {[%clk 0:01:39.8]} 24... Nc6 {[%clk 0:00:53.7]} 25. Ng5
{[%clk 0:01:39]} 1-0